bitfinex/quotes_ETHUSD_20260203
["timestamp","ask_amount","ask_price","bid_price","bid_amount"]
[1770122141568,14.13562273,2292.5,2292.1,0.001]
[1770122141766,2.48500742,2292.5,2292.1,0.001]
[1770122141933,1.39449457,2292.5,2292.1,0.001]
[1770122142139,2.26786346,2292.7,2292.1,0.001]
[1770122142756,14.9958022,2292.7,2292.1,0.001]
[1770122143867,15.00899162,2292.7,2292.1,0.001]
[1770122144071,0.94201929,2292.6,2292.1,0.001]
[1770122144274,0.94201929,2292.5,2292.1,0.001]
[1770122144451,0.94201929,2292.4,2292.1,0.001]
[1770122144653,1.59510109,2292.5,2292.1,0.001]
[1770122144841,0.9419753,2292.4,2292.1,0.001]
[1770122145176,0.94193809,2292.3,2291.9,0.001]
[1770122145384,0.94193809,2292.2,2291.9,0.001]
[1770122145541,0.94193809,2292.1,2291.9,0.001]
[1770122145741,2.04255096,2292.3,2291.9,0.001]
[1770122145937,0.94201827,2292.2,2291.9,0.001]
[1770122146143,3.86306997,2292.5,2291.9,12.55573361]
[1770122146340,1.85559992,2292.4,2291.9,12.55573361]
[1770122146648,0.94159197,2292.3,2291.9,12.55573361]
[1770122147342,0.91400795,2292.4,2291.9,0.001]
[1770122147871,1.09060768,2292.3,2291.9,0.001]
[1770122148240,2.00460567,2292.4,2291.9,0.001]
[1770122148445,2.02721445,2292.3,2291.9,0.001]
[1770122149258,2.00460567,2292.4,2291.9,0.001]
[1770122149778,6.10246974,2292.2,2291.5,0.001]
[1770122149986,1.09075043,2292.0,2291.5,0.001]
[1770122150772,0.01318942,2291.9,2291.5,0.001]
[1770122150976,1.92605976,2291.9,2291.5,0.001]
[1770122151679,0.01318942,2291.8,2291.5,0.001]
[1770122152273,1.1040744,2291.8,2291.5,0.001]
[1770122153078,1.09088498,2291.8,2291.5,0.001]
[1770122153683,1.1906281,2292.2,2291.5,12.19631173]
[1770122153856,0.915,2292.3,2291.5,12.19631173]
[1770122154259,0.915,2292.3,2291.6,1.09094082]
[1770122154260,2.00562656,2292.3,2291.6,1.09094082]
[1770122154488,2.00562656,2292.3,2291.5,13.28726212]
[1770122154785,2.01881598,2292.3,2291.5,13.28726212]
[1770122155191,2.01881598,2292.3,2291.2,4.36451386]
[1770122155388,0.01318942,2291.4,2290.6,12.19531173]
[1770122155690,0.01318942,2291.2,2290.6,12.19531173]
[1770122155863,0.01318942,2291.3,2290.6,12.19531173]
[1770122156187,2.28153639,2291.7,2290.9,13.28757521]
[1770122156391,0.93859581,2291.6,2290.9,12.19631173]
[1770122156682,1.10409771,2291.7,2290.9,13.96161342]
[1770122156887,0.93862017,2291.6,2290.9,13.96161342]
[1770122157084,1.10409771,2291.7,2290.9,13.96161342]
[1770122157884,1.10409771,2291.7,2290.9,15.05287253]
[1770122158081,1.10409771,2291.7,2291.1,0.001]
[1770122158294,0.639586,2291.6,2291.1,0.001]
[1770122158679,1.10519771,2291.7,2291.1,12.19631173]
[1770122158680,0.0011,2291.7,2291.1,12.19631173]
[1770122160394,0.0011,2291.7,2291.3,12.19531173]
[1770122160693,2.43939239,2292.4,2291.4,12.19531173]
[1770122160899,0.01318942,2292.3,2291.4,12.19531173]
[1770122161094,0.01318942,2292.0,2291.2,12.19531173]
[1770122161390,0.01318942,2292.0,2291.1,0.001]
[1770122161391,0.01318942,2291.7,2291.1,0.001]
[1770122161887,0.01318942,2291.7,2291.1,12.19631173]
[1770122162060,1.17743868,2292.3,2291.1,13.28748352]
[1770122162264,1.09070284,2292.1,2291.3,13.2863511]
[1770122162761,0.43481865,2292.4,2291.3,13.2863511]
[1770122163189,0.2,2291.7,2291.3,13.2863511]
[1770122163493,0.43481865,2292.4,2291.4,12.19531173]
[1770122163679,1.52538409,2292.4,2291.4,12.19531173]
[1770122163873,1.52538409,2292.4,2291.6,12.19531173]
[1770122164072,0.43481865,2292.4,2291.6,12.19531173]
[1770122164388,1.52537912,2292.4,2291.6,12.19531173]
[1770122164768,0.43481865,2292.4,2291.7,1.09089322]
[1770122164967,1.52538035,2292.4,2291.8,12.19531173]
[1770122165168,1.52538035,2292.4,2291.8,13.96028951]
[1770122165493,0.43481865,2292.4,2291.8,13.96028951]
[1770122165705,0.0011,2292.6,2291.9,12.19531173]
[1770122167301,0.0011,2292.6,2292.1,12.19531173]
[1770122169597,0.0011,2292.8,2292.3,12.19531173]
[1770122170877,0.0011,2292.4,2292.3,12.19531173]
[1770122171208,0.0011,2292.8,2292.3,12.19531173]
[1770122171702,0.0011,2292.6,2292.4,1.09056011]
[1770122171999,0.0011,2292.6,2292.4,13.28587184]
[1770122172203,0.0011,2292.6,2292.5,1.76481565]
[1770122172681,0.0011,2292.6,2292.5,13.96012738]
[1770122174192,0.0011,2292.6,2292.5,15.05063992]
[1770122177310,0.0011,2293.3,2292.7,12.19531173]
[1770122177532,0.0011,2293.3,2292.7,13.10931173]
[1770122177723,0.0011,2293.3,2292.9,12.19531173]
[1770122178013,0.0011,2293.6,2292.9,12.19531173]
[1770122179311,0.0011,2293.6,2293.0,1.09027474]
[1770122179687,0.0011,2293.6,2293.0,13.28558647]
[1770122182114,0.0011,2293.8,2293.1,12.07755902]
[1770122182303,0.0011,2294.0,2293.2,14.3083424]
[1770122182612,0.0011,2294.4,2293.3,12.07755902]
[1770122183590,0.0011,2294.4,2293.4,1.09008459]
[1770122183796,0.0011,2293.6,2293.5,12.07755902]
[1770122184000,0.0011,2293.8,2293.4,1.09008459]
[1770122184200,0.0011,2293.8,2293.5,12.62260132]
[1770122185010,0.0011,2294.4,2293.6,12.07755902]
[1770122185506,0.0011,2294.4,2293.8,12.07755902]
[1770122185707,0.0011,2294.4,2294.0,12.07755902]
[1770122186214,0.0011,2294.6,2294.0,12.07755902]
[1770122186514,0.0011,2294.6,2294.2,12.07755902]
[1770122187332,0.0011,2294.6,2294.0,12.07755902]
[1770122187815,0.0011,2294.6,2294.1,13.16731099]
[1770122190093,0.0011,2294.6,2294.0,1.08978265]
[1770122190424,10.1407573,2294.6,2293.7,12.99155902]
[1770122190627,10.15394672,2294.6,2293.9,1.0898203]
[1770122191490,0.0011,2294.6,2294.0,1.08979299]
[1770122191694,1.09061451,2294.6,2293.8,4.35950427]
[1770122191896,1.09061451,2294.6,2293.7,15.10696579]
[1770122191897,10.68583643,2294.5,2293.7,2.00390932]
[1770122192291,0.54617913,2294.5,2293.7,14.08146834]
[1770122192519,1.09061451,2294.6,2293.7,14.08146834]
[1770122192520,0.0011,2294.6,2293.7,14.08146834]
[1770122192904,10.15284672,2294.5,2293.6,1.20063916]
[1770122193108,10.15284672,2294.2,2293.6,1.20063916]
[1770122193303,0.01318942,2294.1,2293.6,1.20063916]
[1770122193598,12.15634842,2294.7,2293.7,13.16748879]
[1770122193795,1.08960948,2294.4,2293.7,13.16748879]
[1770122193995,1.1027989,2294.4,2293.6,1.20063916]
[1770122194221,0.01318942,2294.1,2293.6,1.20063916]
[1770122194903,0.01318942,2294.3,2293.6,2.29058911]
[1770122195226,0.01318942,2294.3,2293.6,1.20063916]
[1770122195526,1.08958312,2294.5,2293.7,13.16747377]
[1770122196624,6.02680961,2294.6,2293.7,13.16747377]
[1770122196625,1.65537221,2294.6,2293.7,13.16747377]
[1770122196827,0.0011,2294.6,2293.7,13.16747377]
[1770122197002,0.0011,2294.6,2293.8,12.07755902]
[1770122197408,1.09061466,2294.6,2293.8,12.07755902]
[1770122197729,0.0011,2294.1,2293.9,1.08984698]
[1770122198227,0.0011,2294.1,2293.9,13.167406]
[1770122198528,0.0011,2294.1,2294.0,1.75267978]
[1770122198928,0.0011,2294.6,2294.0,13.8302388]
[1770122199913,0.0011,2294.6,2294.2,12.07755902]
[1770122200924,0.0011,2294.6,2294.1,1.08975197]
[1770122201113,0.01428942,2294.6,2293.6,14.19219818]
[1770122201312,0.01428942,2294.6,2293.9,1.08984639]
[1770122202110,0.01428942,2294.6,2293.7,1.41921982]
[1770122202313,1.10275141,2294.5,2293.7,2.50914621]
[1770122203314,0.01318942,2294.4,2293.7,1.41921982]
[1770122203496,0.01318942,2294.4,2293.6,15.28216687]
[1770122203834,0.01318942,2294.4,2293.6,3.20461311]
[1770122204331,1.08965697,2294.3,2293.6,3.20461311]
[1770122204839,11.24470369,2294.3,2293.6,1.20063916]
[1770122205002,10.15504672,2294.2,2293.6,1.20063916]
[1770122205203,1.12578931,2294.1,2293.6,1.20063916]
[1770122205922,0.01318942,2294.2,2293.6,1.20063916]
[1770122206312,1.08975197,2294.1,2293.6,1.20063916]
[1770122207523,0.01318942,2294.0,2293.3,0.001]
[1770122207727,0.01318942,2293.8,2293.3,0.001]
[1770122207905,0.01318942,2293.7,2293.3,0.001]
[1770122208105,8.95440756,2293.9,2293.3,0.001]
[1770122208106,0.01318942,2293.9,2293.3,0.001]
[1770122208307,0.93911964,2293.8,2293.3,0.001]
[1770122208533,1.08979947,2294.0,2293.3,0.001]
[1770122208735,1.60210733,2293.9,2293.3,0.001]
[1770122208932,0.93911583,2293.8,2293.3,0.001]
[1770122209238,0.6629915,2293.9,2293.8,0.001]
[1770122209446,1.60224972,2293.9,2293.8,0.001]
[1770122210235,1.60224972,2293.9,2293.5,0.001]
[1770122210440,2.02918052,2293.8,2293.5,0.001]
[1770122210612,1.0899223,2293.8,2293.5,0.001]
[1770122210923,1.70247425,2293.8,2293.5,0.001]
[1770122213365,1.16772825,2294.2,2293.5,11.78104461]
[1770122213643,0.93896809,2294.1,2293.5,11.78104461]
[1770122213940,2.25846675,2294.4,2293.5,11.78104461]
[1770122214110,0.93891739,2294.3,2293.5,11.78104461]
[1770122214436,1.0907385,2294.4,2293.7,11.78004461]
[1770122214737,0.9388192,2294.3,2293.7,12.86993978]
[1770122215038,1.0907385,2294.4,2293.7,12.86993978]
[1770122215247,0.93881373,2294.3,2293.7,12.86993978]
[1770122215414,1.0907385,2294.4,2293.7,12.86993978]
[1770122215614,1.0907385,2294.4,2293.8,13.62083395]
[1770122215615,0.93881706,2294.3,2293.8,13.62083395]
[1770122215834,0.0011,2294.4,2293.8,13.62083395]
[1770122216034,0.93881434,2294.3,2293.8,13.62083395]
[1770122216241,0.0011,2294.4,2293.8,13.62083395]
[1770122216544,0.0011,2294.4,2294.0,12.86984408]
[1770122216747,0.0011,2294.4,2294.1,1.7229042]
[1770122217407,0.0011,2294.4,2294.1,13.50294881]
[1770122217732,0.9151,2294.6,2294.1,13.50294881]
[1770122217943,0.0011,2294.6,2294.1,13.50294881]
[1770122220146,0.0011,2294.6,2294.1,14.59267714]
[1770122220347,0.0011,2294.6,2294.2,1.89518653]
[1770122222352,0.0011,2294.6,2294.2,2.98488474]
[1770122222557,1.56133409,2295.5,2294.3,11.78004461]
[1770122222763,0.0011,2295.6,2294.3,11.78004461]
[1770122223621,0.0011,2294.4,2294.3,11.78004461]
[1770122223847,0.0011,2295.6,2294.3,11.78004461]
[1770122224051,0.0011,2295.6,2294.5,11.78004461]
[1770122224249,0.30718504,2295.9,2294.7,11.78004461]
[1770122224437,0.30718504,2295.9,2295.1,11.78004461]
[1770122224631,0.0011,2296.3,2295.1,11.78004461]
[1770122225021,1.08982948,2296.3,2295.1,11.78004461]
[1770122225226,1.08982948,2296.3,2295.2,13.06698153]
[1770122225227,0.01318942,2296.0,2295.2,13.06698153]
[1770122225446,0.01318942,2295.8,2295.0,1.08932461]
[1770122225649,0.01318942,2295.8,2294.9,11.78004461]
[1770122225850,0.01318942,2295.6,2294.6,11.78004461]
[1770122226146,0.01318942,2295.6,2294.8,1.0894006]
[1770122226348,0.01318942,2295.6,2294.4,14.16074653]
[1770122226349,1.08918224,2295.3,2294.4,14.16074653]
[1770122226657,0.01318942,2294.9,2294.1,12.86978612]
[1770122226862,0.01318942,2294.8,2294.1,12.86978612]
[1770122227146,0.01318942,2294.8,2294.2,1.08969883]
[1770122227360,0.01318942,2294.9,2294.1,12.86977422]
[1770122227937,0.01318942,2294.9,2294.2,1.08970174]
[1770122228157,0.01318942,2295.1,2294.2,1.08970174]
[1770122228158,0.54459112,2295.2,2294.4,12.86964433]
[1770122228451,1.08932461,2295.0,2294.3,1.08965238]
[1770122228946,1.63385495,2295.2,2294.3,12.86969699]
[1770122229259,1.08926383,2295.2,2294.3,12.86969699]
[1770122229629,0.01318942,2295.1,2294.3,12.86969699]
[1770122230234,1.08926383,2295.2,2294.3,12.86969699]
[1770122230443,5.27026894,2295.6,2294.5,11.78004461]
[1770122230444,2.003041,2295.6,2294.5,11.78004461]
[1770122230635,1.08902741,2295.7,2294.5,11.78004461]
[1770122230826,1.08902741,2295.7,2294.7,11.78004461]
[1770122230827,1.10221683,2295.7,2294.7,11.78004461]
[1770122232057,1.08902741,2295.7,2294.7,11.78004461]
[1770122232260,1.08898029,2295.8,2294.7,11.78004461]
[1770122232754,4.35563851,2295.9,2294.9,11.78004461]
[1770122233060,4.35563851,2295.9,2295.0,13.06699103]
[1770122233061,4.90273001,2295.9,2295.0,13.06699103]
[1770122233558,1.0888976,2295.9,2295.0,13.06699103]
[1770122235062,0.01318942,2296.1,2295.1,12.86932176]
[1770122235063,1.102024,2296.1,2295.1,12.86932176]
[1770122235430,0.01318942,2295.9,2295.1,1.08927715]
[1770122235631,0.01318942,2296.0,2295.1,12.86932176]
[1770122236266,0.01318942,2295.9,2295.1,1.08927715]
[1770122236431,0.01318942,2295.9,2295.2,0.67333322]
[1770122236631,2.00278228,2296.2,2295.2,12.45337783]
[1770122236939,0.0011,2295.7,2295.3,1.08918224]
[1770122237135,0.914,2296.2,2295.3,12.86922685]
[1770122237460,0.0011,2295.9,2295.4,13.56997351]
[1770122239236,0.0011,2295.9,2295.5,1.08908734]
[1770122239460,0.0011,2296.3,2295.5,1.08908734]
[1770122240747,10.13396207,2296.3,2295.5,1.08908734]
[1770122240933,0.01318942,2296.2,2295.5,1.08908734]
[1770122241133,1.02922351,2296.2,2295.5,1.08908734]
[1770122241755,0.01318942,2296.0,2295.2,1.76252648]
[1770122242968,0.01318942,2295.9,2295.2,1.76255197]
[1770122243173,0.01318942,2295.9,2295.2,1.08921875]
[1770122243400,0.01318942,2295.9,2295.1,2.00224589]
[1770122243576,0.01318942,2295.9,2295.2,1.08922859]
[1770122243862,1.08894503,2295.8,2295.2,1.08922859]
[1770122244169,1.08893608,2295.9,2295.2,1.08922859]
[1770122244386,2.64798221,2295.9,2295.2,1.85385538]
[1770122246646,1.10207369,2296.0,2295.2,14.34424117]
[1770122246840,1.08888427,2296.0,2295.2,14.34424117]
[1770122247474,1.10207369,2296.0,2295.2,1.85385538]
[1770122247676,11.22174634,2296.0,2295.1,0.913]
[1770122247976,10.13286207,2295.9,2295.1,2.0022545]
[1770122248277,1.08894503,2295.8,2295.2,1.08922838]
[1770122249346,1.08894503,2295.8,2295.4,0.001]
[1770122249545,1.09004503,2295.8,2295.4,0.001]
[1770122249760,2.64921701,2295.8,2295.4,0.001]
[1770122252702,10.13186207,2295.7,2294.8,1.08940109]
[1770122252863,0.01318942,2295.4,2294.6,1.08948934]
[1770122253201,0.01318942,2295.4,2294.6,1.08947505]
[1770122253363,1.02891351,2295.4,2294.6,2.88337559]
[1770122254100,1.09004503,2295.8,2295.1,1.08927215]
[1770122254462,1.09004503,2295.8,2295.1,13.57965794]
[1770122255004,0.0011,2295.8,2295.1,13.57965794]
[1770122258279,0.0011,2295.8,2295.1,1.08927215]
[1770122258594,0.0011,2295.8,2295.2,0.54465301]
[1770122259491,0.0011,2295.8,2295.2,1.63386983]
[1770122259874,0.0011,2295.8,2295.2,14.12425562]
[1770122260461,0.0011,2295.8,2295.2,1.63386983]
[1770122260663,0.0011,2295.8,2295.2,1.08921682]
[1770122261797,0.0011,2295.8,2294.9,12.49038579]
[1770122261798,0.0011,2295.8,2295.0,1.08932461]
[1770122262106,0.0011,2295.8,2295.0,13.5797104]
[1770122262779,0.0011,2295.8,2295.3,0.001]
[1770122263096,0.0011,2295.6,2295.3,0.001]
[1770122267704,0.0011,2295.6,2295.0,1.09032287]
[1770122267905,0.0011,2295.6,2295.1,0.54477712]
[1770122268381,0.0011,2295.6,2295.1,13.03516291]
[1770122269705,0.0011,2295.6,2295.2,13.57961548]
[1770122272311,0.0011,2295.8,2295.3,12.38894606]
[1770122273091,0.0011,2296.0,2295.4,12.2113983]
[1770122273301,0.0011,2296.0,2295.6,12.2113983]
[1770122273898,0.0011,2296.0,2295.6,1.08903874]
[1770122274600,0.0011,2296.0,2295.6,13.30043704]
[1770122275504,0.0011,2296.0,2295.6,1.08903974]
[1770122276188,0.0011,2295.8,2295.6,1.08903974]
[1770122276389,0.0011,2295.8,2295.6,3.06813231]
[1770122277683,0.0011,2296.0,2295.6,13.30043804]
[1770122278303,0.0011,2296.3,2295.7,12.2113983]
[1770122279502,0.0011,2296.3,2295.6,1.08903974]
[1770122280080,0.0011,2296.3,2295.6,13.30043804]
[1770122282522,0.0011,2296.5,2295.7,12.0544378]
[1770122282813,0.0011,2296.8,2295.9,12.0544378]
[1770122283006,0.0011,2296.8,2296.1,12.0544378]
[1770122284089,0.0011,2296.9,2296.2,12.0544378]
[1770122284490,0.0011,2296.9,2296.4,12.0544378]
[1770122284814,0.0011,2297.0,2296.6,12.0544378]
[1770122284996,0.0011,2297.0,2296.7,13.35118158]
[1770122285201,0.0016,2297.3,2296.7,13.35118158]
[1770122286118,10.12107265,2298.1,2296.7,13.35118158]
[1770122286290,0.22742323,2297.8,2296.9,12.0544378]
[1770122286490,2.00073227,2298.4,2296.9,12.0544378]
[1770122286491,0.913,2298.4,2297.2,12.0544378]
[1770122286700,0.01318942,2298.3,2297.4,12.0544378]
[1770122286909,10.3616853,2298.3,2297.3,1.31427666]
[1770122287524,10.3616853,2298.2,2297.1,2.00132876]
[1770122287715,10.3616853,2298.2,2297.1,14.05576656]
[1770122288319,10.3616853,2297.8,2296.9,4.35361709]
[1770122288530,10.3616853,2297.6,2296.7,2.38522747]
[1770122288729,10.3616853,2297.3,2296.3,1.08866761]
[1770122288934,0.01318942,2297.6,2296.6,1.08856404]
[1770122288935,10.3616853,2297.6,2296.6,1.08856404]
[1770122289109,10.3616853,2297.6,2296.4,16.4089727]
[1770122289110,0.01318942,2297.2,2296.4,1.08862603]
[1770122289302,0.01318942,2297.2,2296.4,1.63296544]
[1770122289705,0.01318942,2297.2,2296.4,0.54433941]
[1770122289906,0.01318942,2297.2,2296.1,1.08958796]
[1770122289907,0.01318942,2296.9,2296.1,1.08958796]
[1770122290106,0.01318942,2296.9,2296.1,1.08959987]
[1770122290338,0.01318942,2296.8,2296.1,0.0008]
[1770122290535,1.08851186,2296.8,2296.1,0.0008]
[1770122290735,1.08851186,2296.8,2296.1,0.63661754]
[1770122291707,1.10164907,2296.9,2296.1,0.63661754]
[1770122291934,1.08828138,2297.3,2296.1,12.69105534]
[1770122292310,1.08822084,2297.4,2296.1,12.69105534]
[1770122292513,4.36562459,2297.6,2296.3,12.0544378]
[1770122292734,6.36917676,2297.6,2296.5,12.0544378]
[1770122292934,6.38236618,2297.6,2296.5,12.0544378]
[1770122293736,0.01318942,2297.5,2296.5,12.0544378]
[1770122293937,0.01318942,2297.3,2296.2,13.14319313]
[1770122294141,0.01318942,2297.2,2296.2,13.14319313]
[1770122294311,0.01318942,2297.2,2296.3,1.8134832]
[1770122294731,1.08831443,2297.2,2296.4,1.08866051]
[1770122295343,11.43681031,2297.2,2296.3,1.8134832]
[1770122295536,1.10150385,2297.2,2296.3,1.08870316]
[1770122296044,0.01318942,2296.9,2296.2,1.08875272]
[1770122296240,0.01318942,2296.8,2296.1,1.72541062]
[1770122296743,1.08847091,2296.8,2296.2,1.08874922]
[1770122296919,1.08847091,2296.8,2296.1,1.72538375]
[1770122297525,1.08847091,2296.8,2296.2,0.60806773]
[1770122298043,1.08841372,2297.0,2296.2,12.66250553]
[1770122298343,0.01318942,2296.9,2296.2,0.60806773]
[1770122299345,1.08847091,2296.8,2296.2,1.69681557]
[1770122299517,1.08847091,2296.8,2296.1,0.63661754]
[1770122299518,1.10166033,2296.8,2296.1,0.0008]
[1770122299845,1.10166033,2296.8,2296.1,1.08960051]
[1770122300033,1.08847091,2296.8,2296.1,1.08960051]
[1770122300348,1.08841385,2297.0,2296.2,13.77786626]
[1770122300554,0.01318942,2297.3,2296.2,13.77786626]
[1770122300555,1.08828138,2297.2,2296.2,13.77786626]
[1770122300847,1.08826592,2297.3,2296.4,12.68911442]
[1770122301227,1.08826592,2297.3,2296.5,1.0886131]
[1770122302245,1.08826592,2297.3,2296.4,13.7787415]
[1770122302456,0.01318942,2297.2,2296.4,1.08962708]
[1770122303331,1.10145534,2297.3,2296.4,13.7787415]
[1770122303529,1.08822404,2297.4,2296.5,14.68380969]
[1770122305536,4.35266335,2297.5,2296.6,1.0885657]
[1770122305861,4.35266335,2297.5,2296.6,13.77768012]
[1770122306149,4.36585277,2297.5,2296.6,13.77768012]
[1770122307344,0.01318942,2297.0,2296.4,0.001]
[1770122307535,0.01318942,2296.9,2296.4,0.001]
[1770122307853,1.10165869,2296.9,2296.4,0.001]
[1770122308640,0.01318942,2296.7,2295.9,2.0018613]
[1770122308845,0.01318942,2296.4,2295.5,0.001]
[1770122309042,0.01318942,2296.4,2295.6,1.08903009]
[1770122309254,0.01318942,2296.5,2295.7,1.08899165]
[1770122309453,0.01318942,2296.7,2295.7,1.08899165]
[1770122309636,0.01318942,2296.6,2295.7,2.90251764]
[1770122310341,1.0885538,2296.7,2295.8,13.77805295]
[1770122311040,1.08850018,2296.8,2295.8,13.77805295]
[1770122311235,1.08843748,2296.9,2295.8,13.77805295]
[1770122313655,1.08841446,2297.0,2295.8,13.77805295]
[1770122313831,1.08841446,2297.0,2296.0,12.68911442]
[1770122314429,0.01318942,2297.2,2296.2,12.68911442]
[1770122314430,1.08831486,2297.2,2296.2,12.68911442]
[1770122314831,11.44900016,2297.2,2296.1,1.08880275]
[1770122315156,0.01318942,2297.0,2296.1,1.08880275]
[1770122315939,0.01318942,2296.9,2296.0,1.08881189]
[1770122316159,0.01318942,2296.9,2296.0,3.10172927]
[1770122316333,0.01318942,2296.9,2296.0,15.79084369]
[1770122316534,1.08847091,2296.8,2296.0,15.79084369]
[1770122317065,1.08847091,2296.8,2296.0,3.10172927]
[1770122317738,1.08847091,2296.8,2296.0,15.79084369]
[1770122318054,1.08835795,2297.1,2296.1,14.90332354]
[1770122318256,1.08831777,2297.2,2296.1,14.90332354]
[1770122318489,0.76158173,2297.4,2296.3,12.68911442]
[1770122318490,1.08819112,2297.4,2296.3,12.68911442]
[1770122320631,1.08819112,2297.4,2296.4,1.08866051]
[1770122320632,0.01318942,2297.3,2296.4,1.08866051]
[1770122320861,0.6752239,2297.3,2296.4,16.02651603]
[1770122321054,0.66203448,2297.3,2296.4,16.02651603]
[1770122321270,0.66203448,2297.3,2296.5,12.68911442]
[1770122322064,0.66203448,2297.3,2296.4,3.33740161]
[1770122322266,0.6752239,2297.3,2296.5,0.76920437]
[1770122322961,0.66203448,2297.3,2296.6,13.77768012]
[1770122323156,1.08820432,2297.4,2296.6,13.77768012]
[1770122324063,1.10139374,2297.4,2296.6,1.0885657]
[1770122324445,1.08820432,2297.4,2296.6,13.77768012]
[1770122324862,4.35257651,2297.5,2296.6,13.77768012]
[1770122325059,4.36576593,2297.5,2296.6,13.77768012]
[1770122325387,0.66345779,2297.4,2296.6,16.32810565]
[1770122325585,0.67664721,2297.4,2296.6,2.55042553]
[1770122325764,0.01318942,2297.3,2296.5,0.76920437]
[1770122326090,0.67664721,2297.4,2296.6,1.08855235]
[1770122327183,1.08823401,2297.3,2296.6,13.77766677]
[1770122327384,1.75168188,2297.4,2296.6,13.77766677]
[1770122327686,1.0881735,2297.5,2296.6,13.77766677]
[1770122328987,0.0011,2297.3,2296.6,13.77766677]
[1770122329863,10.3617853,2297.3,2296.5,1.85779174]
[1770122330077,10.3617853,2297.3,2296.6,1.08856253]
[1770122330456,0.0011,2297.3,2296.6,1.08856253]
[1770122331387,1.08933401,2297.3,2296.6,1.08856253]
[1770122331692,10.3606853,2297.1,2296.3,1.08868441]
[1770122331893,1.03738747,2297.0,2296.2,14.20023439]
[1770122332187,2.25571725,2297.3,2296.5,13.32584275]
[1770122332390,0.0011,2297.3,2296.5,13.32584275]
[1770122333765,0.01318942,2297.2,2296.5,1.0886066]
[1770122333959,0.01318942,2297.2,2296.4,1.08862551]
[1770122334405,0.01428942,2297.3,2296.5,1.08860515]
[1770122334696,1.27856097,2297.3,2296.5,1.08860515]
[1770122334880,0.01318942,2297.2,2296.3,13.58645528]
[1770122335077,0.01318942,2297.1,2296.3,13.58645528]
[1770122335265,0.01318942,2297.2,2296.3,13.58645528]
[1770122335266,0.01318942,2297.2,2296.5,1.08860789]
[1770122335461,1.08832876,2297.1,2296.4,1.08862726]
[1770122335662,1.76165775,2297.1,2296.4,1.08862726]
[1770122335885,1.76165775,2297.1,2296.4,13.58639721]
[1770122336290,1.08830791,2297.2,2296.4,13.58639721]
[1770122336489,2.35363588,2297.3,2296.4,13.58639721]
[1770122336796,0.0011,2297.3,2296.4,13.58639721]
[1770122341002,0.01318942,2297.2,2296.4,13.58639721]
[1770122341382,0.0011,2297.3,2296.4,14.49939721]
[1770122343782,0.0011,2297.1,2296.4,14.49939721]
[1770122344388,0.0011,2297.3,2296.5,12.49776995]
[1770122344591,0.0011,2297.6,2296.7,12.49776995]
[1770122346068,0.0011,2297.6,2296.9,12.49776995]
[1770122348305,0.0011,2297.6,2297.0,13.58614609]
[1770122356626,0.0011,2297.6,2297.1,12.49876995]
[1770122357402,0.0011,2297.4,2297.1,12.49876995]
[1770122357597,0.0011,2297.6,2297.2,14.46377748]
[1770122358494,0.0011,2297.6,2297.3,1.08823401]
[1770122359404,0.0011,2297.6,2297.2,1.96600753]
[1770122359706,0.0011,2297.6,2297.2,3.05428661]
[1770122360298,0.0011,2297.6,2297.2,15.51802046]
[1770122360501,0.0011,2297.6,2297.3,1.98723174]
[1770122361510,0.0011,2297.6,2297.3,14.45096559]
[1770122362582,0.0011,2297.6,2297.4,1.08818664]
[1770122363313,0.0011,2297.8,2297.4,13.55192049]
[1770122364707,0.0011,2297.8,2297.4,1.08818664]
[1770122364892,0.0011,2297.8,2297.5,0.8340336]
[1770122365612,0.0011,2298.1,2297.6,12.46373385]
[1770122365814,0.0011,2298.1,2297.5,0.8340336]
[1770122366116,0.0011,2298.1,2297.5,13.29776745]
[1770122366713,0.0011,2298.1,2297.6,13.55182577]
[1770122366891,0.0011,2298.1,2297.7,1.8738227]
[1770122368424,0.0011,2298.1,2297.7,14.33755655]
[1770122369289,0.0011,2298.1,2297.7,15.42556827]
[1770122370800,0.0011,2297.9,2297.7,15.42556827]
[1770122371197,0.0011,2297.9,2297.7,1.8238227]
[1770122371402,0.0011,2297.9,2297.6,1.08807354]
[1770122371602,0.0011,2297.9,2297.7,1.08803518]
[1770122373423,0.0011,2297.9,2297.7,12.46373385]
[1770122374120,0.0011,2298.1,2297.7,12.46373385]
[1770122375324,0.0011,2298.1,2297.8,1.08799721]
[1770122375507,0.0011,2298.1,2297.8,3.31360467]
[1770122377027,0.0011,2298.1,2297.6,1.08805683]
[1770122377323,0.0011,2298.1,2297.6,1.08807429]
[1770122378117,0.0011,2298.1,2297.7,12.46373385]
[1770122379229,0.0011,2298.1,2297.6,7.16100349]
[1770122379608,0.0011,2298.1,2297.6,19.62473734]
[1770122379925,0.0011,2298.1,2297.7,2.39782662]
[1770122380112,0.0011,2298.1,2297.7,14.86156047]
[1770122381731,0.0011,2298.1,2297.8,1.99999721]
[1770122382500,0.0011,2298.1,2297.8,14.46373106]
[1770122383310,11.52235813,2298.7,2297.8,14.46373106]
[1770122383512,12.09328696,2298.7,2297.9,14.5850885]
[1770122384017,13.18086653,2298.7,2298.0,1.08790252]
[1770122384218,0.0011,2298.1,2298.0,1.08790252]
[1770122384607,10.34859588,2298.7,2298.0,1.08790252]
[1770122384942,10.34859588,2298.8,2298.0,13.55163637]
[1770122385141,10.34859588,2298.8,2298.1,2.00246283]
[1770122385820,12.60983294,2299.0,2298.2,1.08780784]
[1770122386010,12.60979331,2299.0,2298.2,1.08780784]
[1770122386410,11.43603106,2299.0,2298.2,1.08780784]
[1770122387919,10.34859588,2299.0,2298.2,1.08780784]
[1770122388120,11.4360355,2299.0,2298.4,1.08771319]
[1770122390729,10.34859588,2299.0,2298.4,1.08771319]
[1770122391039,11.43603956,2299.0,2298.4,1.08771319]
[1770122391242,10.34859588,2299.0,2298.4,1.08771319]
[1770122391545,11.43607249,2298.9,2298.3,3.07827758]
[1770122392554,10.34859588,2298.9,2298.3,3.07827758]
[1770122393249,11.43607563,2298.9,2298.3,3.07827758]
[1770122395348,10.34859588,2298.9,2298.3,3.07827758]
[1770122395717,0.0011,2299.1,2298.4,13.77471848]
[1770122396249,1.08848381,2299.1,2298.4,13.77471848]
[1770122396629,0.0011,2298.7,2298.5,12.8730693]
[1770122397752,0.0011,2299.1,2298.6,11.78540344]
[1770122398446,1.39366089,2299.2,2298.6,13.70672229]
[1770122398624,1.39366089,2299.2,2298.6,14.794322]
[1770122399618,10.3617853,2299.0,2298.4,1.98931504]
[1770122399848,10.34859588,2299.0,2298.4,1.08771254]
[1770122400547,10.3617853,2298.9,2298.3,0.001]
[1770122400724,1.08755729,2298.8,2298.3,0.001]